bitfinex/quotes_ETHUSD_20250428
["timestamp","ask_amount","ask_price","bid_price","bid_amount"]
[1745845940853,5.54266714,1804.2,1803.7,6.31525625]
[1745845941453,5.54266714,1804.2,1803.7,6.3152535]
[1745845941659,5.54266714,1804.2,1803.7,6.315257]
[1745845943653,5.54244402,1804.3,1803.7,5.54398264]
[1745845943863,5.54244402,1804.3,1803.8,6.86925332]
[1745845944166,0.41737554,1804.7,1804.1,0.7711]
[1745845944167,0.8267,1804.7,1804.1,0.7711]
[1745845944452,0.8267,1804.7,1804.2,5.219]
[1745845944453,5.54127167,1804.7,1804.2,5.219]
[1745845944755,3.8230548,1804.6,1804.3,0.7711]
[1745845944962,3.30866453,1804.6,1804.3,1.92436122]
[1745845945320,0.30866453,1804.6,1804.3,1.92436122]
[1745845945520,5.54127167,1804.7,1804.3,1.92436122]
[1745845946631,5.54148843,1804.6,1804.3,1.92436122]
[1745845948278,5.54148843,1804.6,1803.8,6.6481861]
[1745845948279,5.54234072,1804.3,1803.9,0.7711]
[1745845948449,5.54234072,1804.3,1804.0,5.218]
[1745845949132,5.54216084,1804.4,1804.0,5.218]
[1745845949428,11.08492193,1804.3,1804.0,5.218]
[1745845949631,5.54266903,1804.2,1804.0,5.218]
[1745845950232,5.54292999,1804.1,1804.0,5.218]
[1745845950445,11.08553316,1804.2,1804.0,5.218]
[1745845950627,5.54266903,1804.2,1804.0,5.218]
[1745845950864,5.54292999,1804.1,1804.0,5.218]
[1745845951184,11.52912791,1804.1,1804.0,5.218]
[1745845955581,5.54415922,1803.7,1803.6,14.135]
[1745845955744,5.54415922,1803.7,1803.6,19.354]
[1745845956238,5.54398261,1803.8,1803.6,19.354]
[1745845956436,1.08222788,1804.1,1803.6,22.0605]
[1745845956638,5.5433379,1804.0,1803.6,22.0605]
[1745845957587,5.54307122,1804.1,1803.6,27.60494198]
[1745845957942,3.0,1804.1,1803.6,33.14918584]
[1745845958147,5.54246773,1804.3,1803.9,0.7692]
[1745845958384,5.54275119,1804.2,1804.0,5.219]
[1745845958798,5.54239805,1804.3,1804.0,5.219]
[1745845959000,5.54274454,1804.2,1804.0,5.219]
[1745845959403,3.0,1804.4,1804.0,5.219]
[1745845959621,0.8296,1804.7,1804.1,0.5219]
[1745845959780,5.54224189,1804.4,1804.0,5.219]
[1745845959980,5.54267347,1804.2,1804.0,5.219]
[1745845960282,5.5424158,1804.3,1804.0,5.219]
[1745845960874,3.0,1804.6,1804.0,5.219]
[1745845961072,5.54212028,1804.4,1804.0,5.219]
[1745845961479,5.54233133,1804.3,1804.0,5.219]
[1745845962109,5.54263187,1804.2,1804.0,5.219]
[1745845962412,5.54233133,1804.3,1804.0,5.219]
[1745845962612,3.0,1804.6,1804.0,5.81782]
[1745845962774,5.5423338,1804.3,1804.0,5.219]
[1745845963216,5.54284286,1804.2,1804.0,5.219]
[1745845963718,14.08514146,1804.3,1804.0,5.219]
[1745845963924,8.54256779,1804.3,1804.0,5.219]
[1745845964910,5.54206498,1804.4,1804.0,5.219]
[1745845965598,8.54180608,1804.5,1804.0,5.79360136]
[1745845965799,8.54180608,1804.5,1804.1,0.7568]
[1745845967415,8.54178711,1804.5,1804.1,0.7568]
[1745845967814,2.98619792,1804.7,1804.1,6.29964366]
[1745845967815,5.54137235,1804.7,1804.1,6.29964366]
[1745845967975,5.54131986,1804.7,1804.2,0.62996437]
[1745845968172,11.08268033,1804.7,1804.2,0.62996437]
[1745845968376,5.54095092,1804.8,1804.3,0.7542]
[1745845968615,10.58611047,1804.9,1804.4,5.126]
[1745845968819,7.59991255,1804.9,1804.4,5.126]
[1745845969015,5.54116129,1804.7,1804.4,5.126]
[1745845969577,6.05526643,1804.8,1804.4,5.126]
[1745845969578,5.54144903,1804.6,1804.4,5.126]
[1745845969789,5.5417013,1804.5,1804.4,5.126]
[1745845972932,6.3519013,1804.5,1804.4,5.126]
[1745845976809,5.54144903,1804.6,1804.4,5.126]
[1745845977505,5.5417013,1804.5,1804.4,5.126]
[1745845979608,6.47665373,1804.6,1804.4,5.126]
[1745845980003,5.5417013,1804.5,1804.4,5.126]
[1745845980203,5.54144903,1804.6,1804.4,5.126]
[1745845980441,3.0,1804.6,1804.4,5.126]
[1745845980610,8.54149666,1804.6,1804.4,5.126]
[1745845981494,3.0,1804.6,1804.4,5.126]
[1745845981694,5.54126013,1804.7,1804.4,5.126]
[1745845981891,11.0819671,1804.8,1804.4,6.4097]
[1745845982108,5.54108716,1804.7,1804.4,5.126]
[1745845982435,5.5417013,1804.5,1804.4,5.126]
[1745845983112,6.31338304,1804.6,1804.4,5.126]
[1745845983310,5.54168304,1804.6,1804.4,5.126]
[1745845983504,3.0,1804.6,1804.4,5.126]
[1745845983707,14.08325327,1804.6,1804.4,5.126]
[1745845983897,8.54159267,1804.6,1804.4,5.126]
[1745845984328,14.08325738,1804.6,1804.4,5.126]
[1745845984938,8.54159267,1804.6,1804.4,5.126]
[1745845985141,3.0,1804.6,1804.4,5.126]
[1745845985318,5.54143299,1804.6,1804.4,5.126]
[1745845985519,8.54112237,1804.7,1804.4,5.6386]
[1745845985837,8.54112237,1804.7,1804.5,0.7711]
[1745845986623,8.54118899,1804.7,1804.5,0.7711]
[1745845987211,5.54087769,1804.8,1804.5,0.7711]
[1745845987412,11.08191297,1804.8,1804.5,0.7711]
[1745845987639,0.30846322,1804.7,1804.5,1.41207]
[1745845988024,5.84956378,1804.7,1804.5,1.41207]
[1745845988223,5.54110056,1804.7,1804.5,1.41207]
[1745845989243,5.54110056,1804.7,1804.4,5.126]
[1745845990737,5.54091409,1804.8,1804.4,5.126]
[1745845990941,5.54116058,1804.7,1804.4,5.126]
[1745845991650,7.15348473,1804.7,1804.4,5.126]
[1745845993141,7.15402545,1804.5,1804.4,5.126]
[1745845993745,7.6684565,1804.5,1804.4,5.126]
[1745845993948,8.1828279,1804.5,1804.4,5.126]
[1745845994122,8.49144531,1804.5,1804.4,5.126]
[1745845995844,1.33741986,1804.5,1804.4,5.126]
[1745845996749,0.82304846,1804.5,1804.4,5.126]
[1745845996960,0.82304846,1804.5,1804.4,6.3916]
[1745845997920,0.51443105,1804.5,1804.4,6.3916]
[1745845998171,5.5416079,1804.6,1804.4,6.3916]
[1745845998312,5.5416079,1804.6,1804.4,5.126]
[1745845999238,7.15353647,1804.7,1804.2,0.7641]
[1745845999239,7.15419404,1804.5,1804.2,0.7641]
[1745845999439,7.15419404,1804.5,1804.3,5.021]
[1745846000164,1.61232415,1804.5,1804.3,5.021]
[1745846000476,5.54154045,1804.6,1804.3,5.021]
[1745846000692,7.15353575,1804.7,1804.3,5.59951]
[1745846000843,5.54143371,1804.6,1804.3,5.59951]
[1745846001236,1.61232415,1804.7,1804.3,5.59951]
[1745846001434,10.1535937,1804.7,1804.3,5.59951]
[1745846001732,0.51458381,1804.6,1804.3,5.59951]
[1745846002032,0.51458381,1804.6,1804.4,0.559951]
[1745846002867,5.59065084,1804.9,1804.5,0.7711]
[1745846003080,5.54080984,1804.8,1804.5,0.7711]
[1745846003746,11.13137622,1804.9,1804.5,0.7711]
[1745846003949,1.61232415,1804.8,1804.5,0.7711]
[1745846004179,7.66768978,1804.8,1804.5,0.7711]
[1745846004766,2.12690557,1804.8,1804.5,0.7711]
[1745846004971,2.12690557,1804.8,1804.5,1.45839739]
[1745846005134,7.66780544,1804.8,1804.5,0.7711]
[1745846005458,1.61232415,1804.8,1804.5,0.7711]
[1745846005859,0.05,1804.9,1804.5,6.31265161]
[1745846006031,0.05,1804.9,1804.5,6.31265542]
[1745846006235,0.05,1804.9,1804.7,0.7711]
[1745846006438,0.05,1804.9,1804.8,5.021]
[1745846006638,0.05,1804.9,1804.8,5.60021]
[1745846007233,0.05,1804.9,1804.8,5.021]
[1745846012144,0.05,1804.9,1804.8,10.56178014]
[1745846012886,0.05,1804.9,1804.8,5.021]
[1745846013086,7.20304291,1804.9,1804.8,5.02]
[1745846013382,0.05,1804.9,1804.8,5.02]
[1745846013589,0.05,1804.9,1804.8,6.2931]
[1745846014750,0.05,1804.9,1804.8,11.83388014]
[1745846019400,0.05,1804.9,1804.8,25.96188014]
[1745846020060,0.05,1804.9,1804.8,20.4211]
[1745846020255,0.05,1804.9,1804.8,19.65]
[1745846020459,0.05,1804.9,1804.8,19.148]
[1745846020901,5.59047315,1804.9,1804.8,19.148]
[1745846021202,0.05,1804.9,1804.8,19.148]
[1745846023308,6.40187315,1804.9,1804.8,19.148]
[1745846024206,6.40187315,1804.9,1804.8,5.02]
[1745846024707,0.8614,1804.9,1804.8,5.02]
[1745846024894,0.05,1804.9,1804.8,5.02]
[1745846026107,0.05,1804.9,1804.8,6.2931]
[1745846026813,0.05,1804.9,1804.8,11.83388014]
[1745846027411,0.05,1804.9,1804.8,6.2931]
[1745846027715,0.05,1804.9,1804.8,5.02]
[1745846033412,0.05,1804.9,1804.8,10.56078014]
[1745846033612,0.05,1804.9,1804.8,11.33188014]
[1745846036819,0.05,1804.9,1804.8,5.7911]
[1745846037175,0.05,1804.9,1804.8,11.33188014]
[1745846037399,0.05,1804.9,1804.8,13.01915667]
[1745846040021,0.05,1804.9,1804.8,15.28279794]
[1745846040224,0.05,1804.9,1804.8,15.68840874]
[1745846044873,0.05,1804.9,1804.8,27.65108459]
[1745846045033,0.05,1804.9,1804.8,27.24547379]
[1745846047930,0.05,1804.9,1804.8,27.24547379]
[1745846048330,0.05,1804.9,1804.8,27.66848511]
[1745846050062,0.05,1804.9,1804.8,29.83080926]
[1745846052463,0.05,1804.9,1804.8,32.83080926]
[1745846053757,0.05,1804.9,1804.8,38.90080926]
[1745846054160,1e-08,1804.9,1804.8,38.90080926]
[1745846055863,1e-08,1804.9,1804.8,36.73848511]
[1745846056291,1e-08,1804.9,1804.8,37.28848511]
[1745846060247,1e-08,1804.9,1804.8,36.51738511]
[1745846060590,1e-08,1804.9,1804.8,38.90080926]
[1745846065518,1e-08,1804.9,1804.8,35.96738511]
[1745846066017,1e-08,1804.9,1804.8,36.51738511]
[1745846068622,1e-08,1804.9,1804.8,32.54437379]
[1745846071589,1e-08,1804.9,1804.8,38.87976823]
[1745846071787,0.8086,1805.8,1805.2,5.53942168]
[1745846072008,0.8086,1805.8,1805.5,5.53848923]
[1745846072816,0.8086,1805.8,1805.4,11.07746563]
[1745846073326,0.51396353,1805.7,1805.5,5.53856968]
[1745846073528,0.51396353,1805.7,1805.5,5.53844645]
[1745846073695,0.51396353,1805.7,1805.5,5.53863195]
[1745846073900,0.8086,1805.8,1805.5,6.65627719]
[1745846074096,0.8086,1805.8,1805.6,5.53822513]
[1745846074290,0.8086,1805.8,1805.7,4.884]
[1745846082434,0.8086,1805.8,1805.7,10.42201849]
[1745846082641,0.8086,1805.8,1805.7,4.884]
[1745846082836,0.88,1805.9,1805.7,12.01804624]
[1745846084060,0.88,1805.9,1805.7,12.11931286]
[1745846084273,0.88,1805.9,1805.8,5.53771181]
[1745846084656,0.05,1805.9,1805.7,12.11912983]
[1745846085370,0.05,1805.9,1805.8,5.53771181]
[1745846085526,0.05,1805.9,1805.8,7.30339597]
[1745846086244,0.05,1805.9,1805.8,7.40465698]
[1745846092851,0.05,1805.9,1805.8,7.95465698]
[1745846093161,0.05,1805.9,1805.8,8.72575698]
[1745846094343,0.05,1805.9,1805.8,10.33808113]
[1745846098271,0.05,1805.9,1805.8,13.33808113]
[1745846101080,0.05,1805.9,1805.8,7.40465698]
[1745846101378,0.05,1805.9,1805.8,1.86694517]
[1745846101577,0.8428,1805.9,1805.8,0.10126101]
[1745846101741,0.8428,1805.9,1805.8,14.21726101]
[1745846102143,0.8428,1805.9,1805.8,19.75497282]
[1745846104269,0.05,1805.9,1805.8,19.75497282]
[1745846104472,0.05,1805.9,1805.8,22.77264932]
[1745846110163,0.05,1805.9,1805.8,17.23493751]
[1745846110385,0.05,1805.9,1805.8,22.77264932]
[1745846112290,0.05,1805.9,1805.8,24.93497347]
[1745846112803,0.05,1805.9,1805.8,23.32264932]
[1745846118088,0.05,1805.9,1805.8,24.93497347]
[1745846118725,0.05,1805.9,1805.8,23.32264932]
[1745846123121,0.8498,1805.9,1805.8,17.23493751]
[1745846123293,0.8498,1805.9,1805.8,14.21726101]
[1745846123490,0.8498,1805.9,1805.8,19.75497282]
[1745846125021,0.8498,1805.9,1805.8,14.21726101]
[1745846125324,0.8498,1805.9,1805.8,19.75497282]
[1745846130518,0.8498,1805.9,1805.8,24.59597282]
[1745846130720,0.05,1805.9,1805.8,27.60934932]
[1745846132940,0.05,1805.9,1805.8,22.07163751]
[1745846133101,0.05,1805.9,1805.8,27.60934932]
[1745846138846,0.05,1805.9,1805.8,22.07163751]
[1745846139222,0.05,1805.9,1805.8,27.60934932]
[1745846140329,0.05,1805.9,1805.8,22.07163751]
[1745846141148,0.05,1805.9,1805.8,27.60934932]
[1745846141350,0.05,1805.9,1805.8,22.07163751]
[1745846141549,0.05,1805.9,1805.8,22.07747131]
[1745846141913,0.05,1805.9,1805.8,19.06409481]
[1745846142113,6.40470517,1805.9,1805.8,19.06409481]
[1745846142341,8.01702932,1805.9,1805.8,4.8468338]
[1745846142647,12.04711766,1805.9,1805.8,4.8468338]
[1745846143153,12.35613256,1805.9,1805.8,4.8468338]
[1745846143449,12.53314257,1805.9,1805.8,4.8468338]
[1745846143815,10.74380841,1805.9,1805.8,4.8468338]
[1745846144010,10.22875519,1805.9,1805.8,4.8468338]
[1745846145447,10.22875519,1805.9,1805.8,4.94809481]
[1745846147858,1.69135002,1805.9,1805.8,4.94809481]
[1745846148355,1.1763149,1805.9,1805.8,4.94809481]
[1745846148555,0.8673,1805.9,1805.8,4.94809481]
[1745846151147,6.40470517,1805.9,1805.8,4.94809481]
[1745846151648,6.40470517,1805.9,1805.8,4.94226101]
[1745846154980,6.71357938,1805.9,1805.8,4.94226101]
[1745846156083,6.40470517,1805.9,1805.8,4.94226101]
[1745846158192,0.8673,1805.9,1805.8,4.94226101]
[1745846158989,0.05,1805.9,1805.8,5.43648711]
[1745846159378,0.05,1805.9,1805.8,10.97419892]
[1745846159580,0.05,1805.9,1805.8,5.43648711]
[1745846159786,0.05,1805.9,1805.8,10.97419892]
[1745846159954,0.05,1805.9,1805.8,5.43648711]
[1745846161001,0.05,1805.9,1805.8,10.97419892]
[1745846161966,0.05,1805.9,1805.8,5.43648711]
[1745846164207,0.05,1805.9,1805.8,4.94226101]
[1745846166299,9.39600517,1805.9,1805.8,4.94226101]
[1745846166482,9.91193602,1805.9,1805.8,4.94226101]
[1745846166990,1.68413601,1805.9,1805.8,4.94226101]
[1745846167907,6.39600517,1805.9,1805.8,4.94226101]
[1745846169100,0.8586,1805.9,1805.8,4.94226101]
[1745846169481,6.39600517,1805.9,1805.8,4.94226101]
[1745846170369,0.8586,1805.9,1805.8,4.94226101]
[1745846170901,6.39600517,1805.9,1805.8,4.94226101]
[1745846172203,0.8586,1805.9,1805.8,4.94226101]
[1745846172702,1.1683239,1805.9,1805.8,4.94226101]
[1745846173511,6.70572907,1805.9,1805.8,4.94226101]
[1745846175092,1.68465109,1805.9,1805.8,4.94226101]
[1745846175300,0.87605109,1805.9,1805.8,4.94226101]
[1745846176378,0.56632719,1805.9,1805.8,4.94226101]
[1745846176813,0.05,1805.9,1805.8,4.94226101]
[1745846177111,0.05,1805.9,1805.8,11.05100892]
[1745846185510,0.05,1805.9,1805.8,13.98443307]
[1745846185713,0.8262,1806.6,1806.3,5.53617025]
[1745846186008,6.36161002,1806.6,1806.4,4.93922738]
[1745846186205,6.17172701,1806.5,1806.1,5.53664492]
[1745846186411,5.53556601,1806.5,1806.2,4.838]
[1745846186809,0.7727,1806.4,1806.2,4.838]
[1745846186988,6.30859153,1806.4,1806.2,4.838]
[1745846187383,5.53617892,1806.3,1806.2,4.838]
[1745846187806,6.34487892,1806.3,1806.2,4.838]
[1745846188029,7.69418838,1806.3,1806.2,4.838]
[1745846188634,8.84550907,1806.3,1806.2,4.838]
[1745846189294,9.2528394,1806.3,1806.2,4.838]
[1745846190632,5.53701729,1806.1,1805.6,19.65713832]
[1745846190929,11.07405405,1806.1,1805.9,4.838]
[1745846191138,11.0740466,1806.1,1805.9,4.838]
[1745846191364,5.53709856,1806.0,1805.9,4.838]
[1745846191504,6.33309856,1806.0,1805.9,4.838]
[1745846193439,0.796,1806.0,1805.9,4.838]
[1745846195450,6.33531729,1806.1,1805.9,4.838]
[1745846197319,5.53709856,1806.0,1805.9,4.838]
[1745846197513,7.14942271,1806.0,1805.9,4.838]
[1745846197835,5.53801849,1805.7,1805.6,18.957]
[1745846198018,6.34281849,1805.7,1805.6,18.957]
[1745846199056,7.16717468,1805.7,1805.6,18.957]
[1745846200218,6.34281849,1805.7,1805.6,18.957]
[1745846201749,6.65169403,1805.7,1805.6,18.957]
[1745846201911,8.03188023,1805.7,1805.6,18.957]
[1745846202313,11.03188023,1805.7,1805.6,18.957]
[1745846202964,11.54650293,1805.7,1805.6,18.957]
[1745846203753,11.03188023,1805.7,1805.6,18.957]
[1745846203951,11.54625124,1805.7,1805.6,18.957]
[1745846204268,11.54625124,1805.7,1805.6,4.838]
[1745846207446,5.20343275,1805.7,1804.9,14.12]
[1745846207646,5.20343275,1805.7,1804.2,6.9360044]
[1745846207647,5.54108716,1804.7,1804.6,4.837]
[1745846207960,6.35598716,1804.7,1804.6,4.837]
[1745846208574,5.54248651,1804.3,1804.1,0.8036]
[1745846208782,5.54217574,1804.4,1804.3,4.837]
[1745846208954,5.54217574,1804.4,1804.3,4.93834519]
[1745846209560,7.15405248,1804.5,1804.3,4.93834519]
[1745846209776,7.15405248,1804.5,1804.4,0.10133958]
[1745846212540,5.54172833,1804.5,1804.4,0.10133958]
[1745846214481,7.96848071,1804.7,1804.4,0.59517354]
[1745846214780,5.54139691,1804.6,1804.4,0.10133958]
[1745846218177,11.08307201,1804.6,1804.4,0.10133958]
[1745846218386,5.5417013,1804.5,1804.4,0.10133958]
[1745846218743,5.54139691,1804.6,1804.4,0.10133958]
[1745846219059,11.08304446,1804.6,1804.4,0.10133958]
[1745846219263,5.54139421,1804.6,1804.4,0.10133958]
[1745846220589,5.96197225,1804.7,1804.4,1.40367354]
[1745846220771,10.94738803,1804.9,1804.4,6.94546112]
[1745846220949,5.54087446,1804.8,1804.4,6.94545634]
[1745846221561,5.54111683,1804.7,1804.4,1.40367354]
[1745846221759,5.95824997,1804.8,1804.4,6.94548783]
[1745846221949,5.54064518,1804.9,1804.5,6.23602023]
[1745846222144,5.54064518,1804.9,1804.6,0.10132835]
[1745846222382,5.54064518,1804.9,1804.7,4.839]
[1745846222604,5.54064518,1804.9,1804.8,0.10131712]
[1745846223563,7.15296933,1804.9,1804.8,0.10131712]
[1745846226191,7.57064707,1804.9,1804.8,0.10131712]
[1745846227565,7.15296933,1804.9,1804.8,0.10131712]
[1745846230067,7.56018019,1804.9,1804.8,0.10131712]
[1745846232908,7.15296933,1804.9,1804.8,0.10131712]
[1745846233114,5.54028566,1805.0,1804.8,0.10131712]
[1745846233284,5.54047315,1804.9,1804.8,0.10131712]
[1745846234615,7.15260981,1805.0,1804.8,0.10131712]
[1745846234773,5.53997424,1805.1,1804.8,0.67272883]
[1745846235087,5.54030637,1805.0,1804.8,0.67272883]
[1745846235802,5.53999221,1805.1,1804.8,0.67272883]
[1745846236016,5.54025806,1805.0,1804.8,0.67272883]
[1745846236201,5.54047315,1804.9,1804.8,0.10131712]
[1745846236709,6.36447315,1804.9,1804.8,0.10131712]
[1745846237470,6.6731406,1804.9,1804.8,0.10131712]
[1745846238207,7.18759416,1804.9,1804.8,0.10131712]
[1745846240818,6.36359416,1804.9,1804.8,0.10131712]
[1745846242492,0.82312101,1804.9,1804.8,1.41744883]
[1745846243425,5.54022263,1805.0,1804.8,1.41744883]
[1745846244005,5.54047315,1804.9,1804.8,1.41744883]
[1745846244315,7.1527973,1804.9,1804.8,0.10131712]
[1745846244619,7.9272973,1804.9,1804.8,0.10131712]
[1745846245585,8.23633083,1804.9,1804.8,0.10131712]
[1745846245785,8.75138961,1804.9,1804.8,0.10131712]
[1745846249236,7.97688961,1804.9,1804.8,0.10131712]
[1745846249726,7.97688961,1804.9,1804.8,4.93831712]
[1745846250042,7.97688961,1804.9,1804.8,6.19104883]
[1745846250043,0.82409231,1804.9,1804.8,6.19104883]
[1745846250534,0.30903353,1804.9,1804.8,6.19104883]
[1745846250684,0.30903353,1804.9,1804.8,5.69701712]
[1745846250883,5.54020075,1805.0,1804.8,5.69701712]
[1745846252736,0.8261,1805.5,1804.9,0.7867]
[1745846252936,0.8261,1805.5,1805.0,0.10130589]
[1745846252937,0.8261,1805.4,1805.0,0.10130589]
[1745846253219,7.15218343,1805.1,1805.0,4.93830589]
[1745846253739,6.36578565,1805.2,1805.0,4.93830589]
[1745846253902,2.9440959,1805.1,1805.0,4.93830589]
[1745846254099,8.48395518,1805.1,1805.0,4.93830589]
[1745846254300,8.79327339,1805.1,1805.0,4.93830589]
[1745846254731,0.82488996,1805.1,1805.0,5.70520589]
[1745846255019,0.82488996,1805.1,1805.0,6.82976046]
[1745846255195,0.30931821,1805.1,1805.0,6.82976046]
[1745846255401,0.30931821,1805.1,1805.0,12.36992666]
[1745846255628,5.53903407,1805.4,1805.0,12.36992666]
[1745846257030,5.53903407,1805.4,1805.0,17.90990835]
[1745846257323,5.53863396,1805.5,1805.2,0.7934]
[1745846257523,5.53863396,1805.5,1805.3,0.10128906]
[1745846257695,5.53863396,1805.5,1805.4,4.836]
[1745846257892,5.53863396,1805.5,1805.4,4.93728345]
[1745846260014,8.95531397,1805.7,1805.4,4.93728345]
[1745846260202,5.53832521,1805.6,1805.5,0.10127784]
[1745846261105,5.538222,1805.7,1805.5,0.10127784]
[1745846262343,11.07650007,1805.7,1805.5,0.10127784]
[1745846262505,5.538222,1805.7,1805.5,0.10127784]
[1745846262716,5.53832521,1805.6,1805.5,0.10127784]
[1745846265617,5.538222,1805.7,1805.5,0.10127784]
[1745846265818,5.53689097,1806.1,1805.5,0.10127784]
[1745846265819,5.53664337,1806.2,1805.8,5.53761809]
[1745846266114,5.53664337,1806.2,1805.9,4.833]
[1745846266474,5.53679198,1806.1,1806.0,0.1012498]
[1745846268335,6.88609793,1806.1,1806.0,0.1012498]
[1745846269149,10.65029793,1806.1,1806.0,0.1012498]
[1745846269347,11.16258626,1806.1,1806.0,0.1012498]
[1745846269537,11.46997088,1806.1,1806.0,0.1012498]
[1745846270558,11.16258626,1806.1,1806.0,0.1012498]
[1745846270858,9.30099198,1806.1,1806.0,0.1012498]
[1745846271157,5.53679198,1806.1,1806.0,0.1012498]
[1745846275465,7.14896752,1806.2,1806.0,0.1012498]
[1745846275669,5.53679198,1806.1,1806.0,0.1012498]
[1745846287245,5.53679198,1806.1,1806.0,0.8560498]
[1745846288474,5.53664337,1806.2,1806.0,1.42495478]
[1745846289201,11.07338552,1806.2,1806.0,1.42495478]
[1745846289561,5.53664337,1806.2,1806.0,1.42495478]
[1745846290472,5.53664337,1806.2,1806.1,4.832]
[1745846290677,5.53664337,1806.2,1806.1,4.93324419]
[1745846291493,5.84514482,1806.2,1806.1,5.55893911]
[1745846292203,0.30850145,1806.2,1806.1,5.55893911]
[1745846292422,0.30850145,1806.2,1806.1,11.09573109]
[1745846292712,5.53544253,1806.6,1806.2,6.29450145]
[1745846292943,5.53544253,1806.6,1806.3,0.10123298]
[1745846293106,5.53544253,1806.6,1806.3,0.74080642]
[1745846293424,5.53527323,1806.6,1806.3,0.74080642]
[1745846293580,5.53509574,1806.7,1806.3,6.27686737]
[1745846293919,0.30858005,1806.6,1806.3,6.27686737]
[1745846294593,5.843927,1806.6,1806.3,0.74080642]
[1745846294784,5.53534695,1806.6,1806.3,0.74080642]
[1745846296006,5.53509574,1806.7,1806.3,6.27687446]
[1745846296318,0.30852632,1806.6,1806.4,0.62768745]
[1745846296493,0.30852632,1806.6,1806.5,4.93122177]
[1745846296691,5.53509574,1806.7,1806.5,4.93122177]
[1745846296909,5.53509574,1806.7,1806.5,4.83]
[1745846297906,5.53504796,1806.7,1806.5,4.83]
[1745846298983,5.53495506,1806.7,1806.5,4.83]
[1745846299181,5.53495506,1806.7,1806.5,5.313]
[1745846301289,14.06972752,1806.8,1806.5,5.313]
[1745846301619,5.53507931,1806.7,1806.5,5.313]
[1745846303127,11.07025829,1806.7,1806.5,5.313]
[1745846303328,5.5352596,1806.6,1806.5,5.313]
[1745846303518,5.53507931,1806.7,1806.5,5.313]
[1745846303826,11.0703308,1806.7,1806.5,5.313]
[1745846304186,5.53507931,1806.7,1806.5,5.313]
[1745846304486,5.5352596,1806.6,1806.5,5.313]
[1745846305932,5.53507931,1806.7,1806.5,5.313]
[1745846306537,8.53483808,1806.8,1806.6,0.5313]
[1745846307019,14.06970757,1806.8,1806.6,0.5313]
[1745846307939,5.53495322,1806.7,1806.6,0.5313]
[1745846308338,0.05,1806.9,1806.6,0.5313]
[1745846308632,0.05,1806.9,1806.7,0.8184]
[1745846308827,5.58451821,1806.9,1806.7,0.8184]
[1745846309041,11.11911449,1806.9,1806.8,0.10120497]
[1745846309336,5.58451821,1806.9,1806.8,0.10120497]
[1745846314155,0.05,1806.9,1806.8,0.10120497]
[1745846316063,0.05,1806.9,1806.8,8.035476]
[1745846316263,0.05,1806.9,1806.8,9.39250544]
[1745846319668,0.05,1806.9,1806.8,7.78018129]
[1745846325846,0.05,1806.9,1806.8,21.89118129]
[1745846328577,0.05,1806.9,1806.8,15.56923441]
[1745846328786,0.05,1806.9,1806.8,14.21220497]
[1745846338185,0.05,1806.9,1806.8,19.74685185]
[1745846338346,0.05,1806.9,1806.8,20.55705185]
[1745846338546,0.05,1806.9,1806.8,22.169376]
[1745846339645,0.05,1806.9,1806.8,20.55705185]
[1745846339845,0.05,1806.9,1806.8,23.16623831]
[1745846341582,0.05,1806.9,1806.8,27.99223831]
[1745846342697,0.05,1806.9,1806.8,21.64739143]
[1745846344189,0.05,1806.9,1806.8,27.18203831]
[1745846344394,0.05,1806.9,1806.8,21.64739143]
[1745846344567,0.05,1806.9,1806.8,27.18203831]
[1745846347071,0.05,1806.9,1806.8,21.64739143]
[1745846348005,0.05,1806.9,1806.8,27.18203831]
[1745846349108,0.05,1806.9,1806.8,22.35603831]
[1745846349359,6.33794058,1806.9,1806.8,19.03720497]
[1745846349504,6.6465788,1806.9,1806.8,19.03720497]
[1745846349907,7.16103012,1806.9,1806.8,19.03720497]
[1745846352005,8.77335427,1806.9,1806.8,19.03720497]
[1745846352209,10.62682229,1806.9,1806.8,4.92620497]
[1745846355930,10.20411177,1806.9,1806.8,4.92620497]
[1745846356566,10.6267481,1806.9,1806.8,4.92620497]
[1745846356766,9.01442395,1806.9,1806.8,4.92620497]
[1745846358157,8.59178762,1806.9,1806.8,4.92620497]
[1745846358961,7.16103012,1806.9,1806.8,4.92620497]
[1745846359169,6.8523919,1806.9,1806.8,4.92620497]
[1745846360030,6.0987919,1806.9,1806.8,4.92620497]
[1745846360971,0.56445132,1806.9,1806.8,4.92620497]
[1745846361430,0.05,1806.9,1806.8,4.92620497]
[1745846361634,0.05,1806.9,1806.8,6.05081547]
[1745846362029,0.05,1806.9,1806.8,11.58546235]
[1745846362266,0.05,1806.9,1806.8,6.05081547]
[1745846366275,0.05,1806.9,1806.8,11.58546235]
[1745846367479,0.05,1806.9,1806.8,6.05081547]
[1745846369050,0.05,1806.9,1806.8,11.58546235]
[1745846379429,0.05,1806.9,1806.8,13.1977865]
[1745846379594,0.05,1806.9,1806.8,14.0174865]
[1745846381525,0.05,1806.9,1806.8,14.5674865]
[1745846381724,0.05,1806.9,1806.8,12.95516235]
[1745846390346,0.05,1806.9,1806.8,15.95516235]
[1745846392044,0.7593,1807.5,1807.4,5.53280956]
[1745846392238,0.7593,1807.5,1807.4,10.35180956]
[1745846394156,0.7593,1807.5,1807.4,11.94028931]
[1745846394823,0.7593,1807.5,1807.4,12.04146068]
[1745846395015,0.7593,1807.5,1807.4,6.50865112]
[1745846395215,0.7593,1807.5,1807.4,12.04146068]
[1745846396543,0.7593,1807.5,1807.4,6.50865112]
[1745846396859,0.7593,1807.5,1807.4,4.92017137]
[1745846398465,0.7593,1807.5,1807.4,10.45298093]
[1745846399223,0.7923,1807.7,1807.4,10.45282554]
[1745846399561,0.7923,1807.7,1807.5,0.10116577]
[1745846400625,6.32422139,1807.7,1807.5,0.10116577]
[1745846400825,0.7923,1807.7,1807.5,0.10116577]
[1745846401326,6.32421163,1807.7,1807.5,0.10116577]
[1745846401526,0.7923,1807.7,1807.5,0.10116577]
[1745846401792,0.7923,1807.7,1807.5,1.146443]